fUSD/lending_fUSD_20250507
["ID","MTS","AMOUNT","RATE_DAILY","PERIOD"]
[360242237,1746653448136,-1317.84,0.00019999,2]
[360242238,1746653448146,-1317.84,0.00019999,2]
[360242239,1746653448156,-1317.84,0.00019999,2]
[360242240,1746653448166,-1318.04,0.00019999,2]
[360242241,1746653448176,-1400.85,0.00019999,2]
[360242242,1746653448186,-1400.85,0.00019999,2]
[360242243,1746653448196,-1400.85,0.00019999,2]
[360242244,1746653448207,-1400.85,0.00019999,2]
[360242245,1746653448218,-1400.85,0.00019999,2]
[360242246,1746653448228,-1400.85,0.00019999,2]
[360242247,1746653448238,-1400.85,0.00019999,2]
[360242248,1746653448248,-1400.85,0.00019999,2]
[360242249,1746653448258,-1400.85,0.00019999,2]
[360242250,1746653448268,-1400.85,0.00019999,2]
[360242251,1746653448278,-1400.85,0.00019999,2]
[360242252,1746653448288,-1400.85,0.00019999,2]
[360242253,1746653448298,-1400.85,0.00019999,2]
[360242254,1746653448307,-1400.85,0.00019999,2]
[360242255,1746653448317,-1400.85,0.00019999,2]
[360242256,1746653448327,-1400.85,0.00019999,2]
[360242257,1746653448337,-1400.85,0.00019999,2]
[360242258,1746653448347,-1400.85,0.00019999,2]
[360242259,1746653448356,-1400.85,0.00019999,2]
[360242260,1746653448366,-1400.85,0.00019999,2]
[360242261,1746653448376,-1400.85,0.00019999,2]
[360242262,1746653448386,-1400.85,0.00019999,2]
[360242263,1746653448395,-1400.97,0.00019999,2]
[360242264,1746653448405,-3142.08,0.00019999,2]
[360242265,1746653448415,-3142.08,0.00019999,2]
[360242266,1746653448425,-3142.08,0.00019999,2]
[360242267,1746653448435,-3142.08,0.00019999,2]
[360242268,1746653448445,-3142.08,0.00019999,2]
[360242269,1746653448455,-3142.08,0.00019999,2]
[360242270,1746653448465,-3142.08,0.00019999,2]
[360242271,1746653448475,-3142.08,0.00019999,2]
[360242272,1746653448485,-3142.08,0.00019999,2]
[360242273,1746653448495,-3142.08,0.00019999,2]
[360242274,1746653448504,-3142.08,0.00019999,2]
[360242275,1746653448514,-3142.08,0.00019999,2]
[360242276,1746653448523,-3142.08,0.00019999,2]
[360242277,1746653448533,-3142.08,0.00019999,2]
[360242278,1746653448543,-1992.7565354,0.00019999,2]
[360242279,1746653448995,-371.099996,0.00019997,2]
[360242280,1746653449188,-78.900004,0.00019997,2]
[360242281,1746653449202,-270.0177523,0.00019997,2]
[360242282,1746653449221,-179.9822477,0.00019997,2]
[360242283,1746653449232,-338.06553034,0.00019998,2]
[360242284,1746653449244,-111.93446966,0.00019998,2]
[360242285,1746653449255,-366.65616278,0.00019998,2]
[360242286,1746653449268,-83.34383722,0.00019998,2]
[360242287,1746653449279,-416.65616278,0.00019998,2]
[360242288,1746653449314,-33.34383722,0.00019998,2]
[360242289,1746653449325,-450.0,0.00019998,2]
[360242290,1746653449336,-531.52170199,0.00019999,2]
[360242291,1746653449349,-617.80176261,0.00019999,2]
[360242292,1746653449360,-3142.08,0.00019999,2]
[360242293,1746653449375,-3142.08,0.00019999,2]
[360242294,1746653449387,-3142.08,0.00019999,2]
[360242295,1746653449399,-3026.76666746,0.00019999,2]
[360242296,1746653449414,-115.31333254,0.00019999,2]
[360242297,1746653449425,-3142.08,0.00019999,2]
[360242298,1746653449437,-643.26136733,0.00019999,2]
[360242299,1746653449452,-1361.0,0.00019999,2]
[360242300,1746653480416,300.0,0.000193,7]
[360242301,1746653482516,700.0,0.000194,7]
[360242302,1746653484619,1100.0,0.000195,7]
[360242303,1746653486722,1500.0,0.000196,7]
[360242304,1746653489091,1900.0,0.000197,7]
[360242305,1746653490986,300.0,0.000198,7]
[360242306,1746653493099,300.0,0.000199,7]
[360242307,1746653562082,166.66666,0.00019999,23]
[360242308,1746653603554,500.0,0.00030112,120]
[360242309,1746653756042,489.6,0.00017046,2]
[360242310,1746653756447,489.6,0.0001931,2]
[360242311,1746653759019,1000.0,0.00018964,2]
[360242312,1746653791892,150.0,0.00018986,7]
[360242313,1746653867652,166.66667,0.000248,34]
[360242314,1746653867719,166.66667,0.000273,39]
[360242315,1746654115074,250.0,0.00017,2]
[360242316,1746654116146,300.0,0.00019,2]
[360242317,1746654125414,1333.0,0.00029041,120]
[360242318,1746654193891,2000.0,0.00018848,2]
[360242319,1746654201266,500.0,0.00030113,120]
[360242320,1746654203678,200.0,0.00018848,2]
[360242321,1746654305236,7188.18,0.00019,2]
[360242322,1746654381953,61.82,0.00018956,2]
[360242323,1746654381980,196.53,0.00018956,2]
[360242324,1746654389916,401.23919258,0.0002,5]
[360242333,1746654631846,-151.0,0.000197,2]
[360242334,1746654631856,-1362.2703967,0.000197,2]
[360242335,1746654631868,-1048.4696033,0.000197,2]
[360242336,1746654631878,-151.0,0.00019888,2]
[360242337,1746654631888,-8.14686875,0.00019896,3]
[360242338,1746654631909,-262.97776871,0.00019896,3]
[360242339,1746654631919,-56.02223129,0.00019896,2]
[360242340,1746654631932,-1143.97776871,0.00019896,2]
[360242341,1746654631942,-479.94234123,0.00019896,2]
[360242342,1746654631952,-479.94234123,0.00019897,2]
[360242343,1746654631962,-215.7085102,0.00019897,2]
[360242344,1746654631971,-176.19947768,0.00019897,2]
[360242345,1746654631981,-177.83689229,0.00019897,2]
[360242346,1746654631991,-300.0,0.00019897,2]
[360242347,1746654632001,-300.0,0.00019897,2]
[360242348,1746654632011,-479.94234123,0.00019897,2]
[360242349,1746654632021,-479.94234123,0.00019898,2]
[360242350,1746654632031,-200.0,0.00019898,2]
[360242351,1746654632042,-479.94234123,0.00019898,2]
[360242352,1746654632052,-479.94234123,0.00019899,2]
[360242353,1746654632063,-241.768,0.00019899,2]
[360242354,1746654632078,-1000.0,0.00019899,2]
[360242355,1746654632088,-151.87337538,0.00019899,2]
[360242356,1746654632099,-45.93907079,0.00019899,2]
[360242357,1746654632111,-434.00327044,0.00019899,2]
[360242358,1746654632121,-479.94234123,0.000199,2]
[360242359,1746654632130,-20.38438833,0.000199,2]
[360242360,1746654632144,-526.56521167,0.000199,2]
[360242361,1746654632154,-479.94234123,0.000199,2]
[360242362,1746654632163,-2757.69679773,0.000199,2]
[360242363,1746654632173,-200.0,0.00019933,2]
[360242364,1746654632183,-500.0,0.00019973,2]
[360242365,1746654632192,-500.0,0.00019973,2]
[360242366,1746654632202,-500.0,0.00019973,2]
[360242367,1746654632212,-1535.94,0.00019988,2]
[360242368,1746654632222,-171.05888389,0.00019988,2]
[360242369,1746654632231,-290.27959333,0.00019989,2]
[360242370,1746654632240,-450.0,0.00019989,2]
[360242371,1746654632250,-450.0,0.00019989,2]
[360242372,1746654632260,-450.0,0.00019989,2]
[360242373,1746654632270,-544.91,0.00019989,2]
[360242374,1746654632280,-450.0,0.00019989,2]
[360242375,1746654632290,-500.0,0.00019989,2]
[360242376,1746654632300,-500.0,0.00019989,2]
[360242377,1746654632310,-450.0,0.00019989,2]
[360242378,1746654632320,-450.0,0.00019989,2]
[360242379,1746654632330,-171.63,0.00019989,2]
[360242380,1746654632339,-450.0,0.00019989,2]
[360242381,1746654632349,-180.34230286,0.00019989,2]
[360242382,1746654632359,-550.0,0.00019989,2]
[360242383,1746654632369,-450.0,0.00019989,2]
[360242384,1746654632378,-553.02855182,0.00019989,2]
[360242385,1746654632387,-500.0,0.00019989,2]
[360242386,1746654632397,-450.0,0.00019989,2]
[360242388,1746654632406,-528.37983904,0.00019989,2]
[360242390,1746654632416,-185.73,0.00019989,2]
[360242392,1746654632425,-550.0,0.00019989,2]
[360242394,1746654632435,-396.07,0.00019989,2]
[360242396,1746654632444,-500.0,0.00019989,2]
[360242398,1746654632454,-450.0,0.00019989,2]
[360242400,1746654632465,-550.0,0.00019989,2]
[360242402,1746654632474,-550.0,0.00019989,2]
[360242404,1746654632483,-500.0,0.00019989,2]
[360242406,1746654632494,-450.0,0.00019989,2]
[360242408,1746654632504,-472.39410047,0.00019989,2]
[360242409,1746654632514,-450.0,0.00019989,2]
[360242410,1746654632524,-471.68567967,0.00019989,2]
[360242411,1746654632534,-500.0,0.00019989,2]
[360242412,1746654632544,-1133.45,0.00019989,2]
[360242413,1746654632555,-550.0,0.00019989,2]
[360242414,1746654632565,-550.0,0.00019989,2]
[360242415,1746654632575,-178.77,0.00019989,2]
[360242416,1746654632584,-550.0,0.00019989,2]
[360242417,1746654632594,-450.0,0.00019989,2]
[360242418,1746654632603,-450.0,0.00019989,2]
[360242419,1746654632613,-450.0,0.00019989,2]
[360242420,1746654632623,-450.0,0.00019989,2]
[360242421,1746654632633,-450.0,0.00019989,2]
[360242422,1746654632643,-450.0,0.00019989,2]
[360242423,1746654632652,-450.0,0.00019989,2]
[360242424,1746654632662,-554.28609376,0.00019989,2]
[360242425,1746654632671,-450.0,0.00019989,2]
[360242426,1746654632682,-1271.32,0.00019989,2]
[360242427,1746654632693,-234.09366509,0.00019989,2]
[360242428,1746654632703,-557.8061407,0.00019989,2]
[360242429,1746654632712,-550.0,0.00019989,2]
[360242430,1746654632722,-556.31213298,0.00019989,2]
[360242431,1746654632731,-1140.25,0.00019989,2]
[360242432,1746654632741,-564.23969743,0.00019989,2]
[360242433,1746654632751,-450.0,0.00019989,2]
[360242434,1746654632761,-185.67,0.00019989,2]
[360242435,1746654632770,-315.95862311,0.00019989,2]
[360242438,1746654632791,-134.04137689,0.00019989,2]
[360242440,1746654632800,-530.24,0.00019989,2]
[360242442,1746654632810,-538.81429643,0.00019989,2]
[360242444,1746654632820,-556.83062747,0.00019989,2]
[360242446,1746654632829,-450.0,0.00019989,2]
[360242448,1746654632839,-562.28569738,0.00019989,2]
[360242450,1746654632849,-450.0,0.00019989,2]
[360242452,1746654632859,-582.71926886,0.00019989,2]
[360242454,1746654632868,-1003.0,0.00019989,2]
[360242456,1746654632878,-303.0345973,0.00019989,2]
[360242458,1746654632888,-637.41441247,0.00019989,2]
[360242460,1746654632898,-500.0,0.00019989,2]
[360242462,1746654632907,-362.41536771,0.00019989,2]
[360242464,1746654632918,-500.0,0.00019989,2]
[360242466,1746654632927,-500.0,0.00019989,2]
[360242468,1746654632937,-500.0,0.00019989,2]
[360242470,1746654632947,-152.41528369,0.00019989,2]
[360242472,1746654632957,-564.47713529,0.00019989,2]
[360242474,1746654632967,-450.0,0.00019989,2]
[360242476,1746654632977,-550.0,0.00019989,2]
[360242478,1746654632986,-500.0,0.00019989,2]
[360242480,1746654632996,-450.0,0.00019989,2]
[360242482,1746654633006,-1193.84,0.00019989,2]
[360242484,1746654633015,-500.0,0.00019989,2]
[360242486,1746654633025,-436.86609465,0.00019989,2]
[360242488,1746654633035,-450.0,0.00019989,2]
[360242490,1746654633044,-450.0,0.00019989,2]
[360242492,1746654633054,-450.0,0.00019989,2]
[360242494,1746654633064,-328.43,0.00019989,2]
[360242496,1746654633078,-450.0,0.00019989,2]
[360242497,1746654633088,-450.0,0.00019989,2]
[360242498,1746654633099,-267.80403106,0.00019989,2]
[360242499,1746654633109,-500.0,0.00019989,2]
[360242500,1746654633119,-500.0,0.00019989,2]
[360242501,1746654633129,-450.0,0.00019989,2]
[360242502,1746654633138,-450.0,0.00019989,2]
[360242503,1746654633149,-500.0,0.00019989,2]
[360242504,1746654633159,-500.0,0.00019989,2]
[360242505,1746654633170,-500.0,0.00019989,2]
[360242506,1746654633180,-500.0,0.00019989,2]
[360242507,1746654633191,-536.24153677,0.00019989,2]
[360242508,1746654633201,-527.09300086,0.00019989,2]
[360242509,1746654633212,-557.46959131,0.00019989,2]
[360242510,1746654633221,-450.0,0.00019989,2]
[360242511,1746654633232,-238.77808801,0.00019989,2]
[360242512,1746654633242,-558.33,0.00019989,2]
[360242513,1746654633253,-450.0,0.00019989,2]
[360242514,1746654633264,-544.25612897,0.00019989,2]
[360242515,1746654633273,-554.17632982,0.00019989,2]
[360242516,1746654633283,-550.0,0.00019989,2]
[360242517,1746654633293,-550.0,0.00019989,2]
[360242518,1746654633303,-550.0,0.00019989,2]
[360242519,1746654633313,-450.0,0.00019989,2]
[360242520,1746654633323,-560.50536294,0.00019989,2]
[360242521,1746654633333,-500.0,0.00019989,2]
[360242522,1746654633343,-569.69513572,0.00019989,2]
[360242523,1746654633353,-450.0,0.00019989,2]
[360242524,1746654633364,-550.0,0.00019989,2]
[360242525,1746654633375,-450.0,0.00019989,2]
[360242526,1746654633385,-450.0,0.00019989,2]
[360242527,1746654633395,-450.0,0.00019989,2]
[360242528,1746654633406,-500.0,0.00019989,2]
[360242529,1746654633416,-511.87075435,0.00019989,2]
[360242530,1746654633426,-450.0,0.00019989,2]
[360242531,1746654633435,-500.0,0.00019989,2]
[360242532,1746654633445,-500.0,0.00019989,2]
[360242533,1746654633455,-1816.71,0.00019989,2]
[360242534,1746654633464,-550.0,0.00019989,2]
[360242535,1746654633474,-1231.26,0.00019989,2]
[360242536,1746654633483,-500.0,0.00019989,2]
[360242537,1746654633493,-500.0,0.00019989,2]
[360242538,1746654633502,-500.0,0.00019989,2]
[360242539,1746654633512,-450.0,0.00019989,2]
[360242540,1746654633521,-550.0,0.00019989,2]
[360242541,1746654633531,-450.0,0.00019989,2]
[360242542,1746654633541,-500.0,0.00019989,2]
[360242543,1746654633551,-1357.87,0.00019989,2]
[360242544,1746654633563,-450.0,0.00019989,2]
[360242545,1746654633572,-591.16,0.00019989,2]
[360242546,1746654633582,-1729.69,0.00019989,2]
[360242547,1746654633592,-195.348425,0.00019989,2]
[360242548,1746654633602,-550.0,0.00019989,2]
[360242549,1746654633612,-550.0,0.00019989,2]
[360242550,1746654633621,-450.0,0.00019989,2]
[360242551,1746654633631,-550.0,0.00019989,2]
[360242552,1746654633641,-3056.56,0.00019989,2]
[360242553,1746654633650,-1509.63,0.00019989,2]
[360242554,1746654633661,-2129.294621,0.00019989,2]
[360242555,1746654633671,-265.78,0.00019989,2]
[360242556,1746654633681,-548.0,0.00019989,2]
[360242557,1746654633690,-500.0,0.00019989,2]
[360242558,1746654633700,-1584.29,0.00019989,2]
[360242559,1746654633710,-500.0,0.00019989,2]
[360242560,1746654633719,-1008.01404477,0.0001999,2]
[360242561,1746654633732,-102093.71258688,0.0001999,2]
[360242567,1746654637906,-3669.25000039,0.0001999,2]
[360242568,1746654637918,-8004.93322438,0.0001999,2]
[360242569,1746654638016,-1042.82955653,0.0001999,2]
[360242579,1746654640091,-450.0,0.00019989,2]
[360242580,1746654640101,-784.69500997,0.0001999,2]
[360242581,1746654640145,-925.2436,0.0001999,2]
[360242582,1746654640529,-2881.1945751,0.0001999,2]
[360242583,1746654640589,-450.0,0.00019989,2]
[360242584,1746654640601,-179.43837825,0.0001999,2]
[360242605,1746654643113,-299.58,0.00019989,2]
[360242606,1746654643123,-62.20212,0.0001999,2]
[360242608,1746654646132,-3706.35930532,0.000199,2]
[360242609,1746654646143,-743.93,0.00019989,2]
[360242610,1746654646154,-21843.36750638,0.0001999,2]
[360242611,1746654646431,-1808.19999996,0.0001999,2]
[360242621,1746654670738,150.0,0.0003,30]
[360242622,1746654700756,503.94,0.00019099,2]
[360242623,1746654701834,503.94,0.00026261,120]
[360242624,1746654702328,503.94,0.00028649,120]
[360242625,1746654768144,440.64,0.00017132,2]
[360242626,1746654768351,440.64,0.00019396,2]
[360242627,1746654783396,166.66667,0.0001993,23]
[360242628,1746654793770,2000.0,0.00019241,2]
[360242629,1746654800779,409.054588,0.00030109,120]
[360242630,1746654808828,150.0,0.00018986,7]
[360242631,1746654851966,823.4165373,0.0003,30]
[360242632,1746654880110,2388.99,0.00019023,2]
[360242633,1746654909589,1333.0,0.00029041,120]
[360242635,1746655133851,1000.0,0.00019182,2]
[360242636,1746655300367,1004.0,0.00030137,120]
[360242638,1746655392704,258.35,0.00018947,2]
[360242639,1746655426563,156.45,0.00018956,2]
[360242640,1746655452494,250.0,0.00019494,2]
[360242641,1746655627531,150.0,0.0003,30]
[360242642,1746655657636,268.68,0.00018952,2]
[360242643,1746655658119,268.68,0.00018957,2]
[360242644,1746655658275,268.68,0.00018962,2]
[360242645,1746655658532,268.68,0.00018967,2]
[360242646,1746655658744,268.68,0.00018972,2]
[360242647,1746655658975,268.68,0.00018977,2]
[360242648,1746655659202,268.68,0.00018982,2]
[360242649,1746655659497,268.68,0.00018987,2]
[360242650,1746655659750,268.68,0.00018992,2]
[360242651,1746655659990,215.02,0.00018997,2]
[360242652,1746655660012,53.66,0.00018997,2]
[360242653,1746655660210,268.68,0.00019002,2]
[360242654,1746655660427,268.68,0.00019007,2]
[360242655,1746655660636,268.68,0.00019012,2]
[360242656,1746655660831,268.68,0.00019017,2]
[360242657,1746655661059,268.68,0.00019022,2]
[360242658,1746655661263,268.68,0.00019027,2]
[360242659,1746655661468,268.68,0.00019032,2]
[360242660,1746655661681,268.68,0.00019037,2]
[360242661,1746655661925,268.68,0.00019042,2]
[360242662,1746655662139,268.68,0.00019047,2]
[360242663,1746655693081,1333.0,0.00029041,120]
[360242673,1746655832053,-258.33,0.00019699,2]
[360242674,1746655832064,-300.0,0.00019699,2]
[360242675,1746655832075,-1200.0,0.00019699,2]
[360242676,1746655832085,-41.67000001,0.00019699,2]
[360242677,1746655832277,-258.32999999,0.00019699,2]
[360242678,1746655832287,-43012.38456615,0.000197,2]
[360242679,1746655832297,-1033.12,0.000197,2]
[360242680,1746655832307,-1528.33998847,0.00019801,2]
[360242681,1746655832318,-1528.33998847,0.00019815,2]
[360242682,1746655832328,-500.0,0.00019873,2]
[360242683,1746655832339,-162.08008808,0.00019873,2]
[360242684,1746655832349,-500.0,0.00019873,2]
[360242685,1746655832359,-264.58071597,0.00019873,2]
[360242686,1746655832370,-500.0,0.00019873,2]
[360242687,1746655832380,-400.96451374,0.00019873,2]
[360242688,1746655832391,-207.4,0.00019878,2]
[360242689,1746655832401,-5030.90569244,0.00019889,2]
[360242690,1746655832411,-185.1364,0.00019889,2]
[360242691,1746655832421,-3990.309,0.00019889,2]
[360242692,1746655832431,-2842.2881,0.00019889,2]
[360242693,1746655832442,-1832.424,0.00019889,2]
[360242694,1746655832452,-860.5632,0.0001989,2]
[360242695,1746655832461,-202.57761907,0.0001989,2]
[360242696,1746655832471,-5030.90569239,0.0001989,2]
[360242697,1746655832481,-5030.90569239,0.00019891,2]
[360242698,1746655832490,-5030.90569239,0.00019893,2]
[360242700,1746655832500,-5030.90569239,0.00019894,2]
[360242701,1746655832509,-5030.90569239,0.00019895,2]
[360242704,1746655832519,-2213.49381808,0.00019896,2]
[360242706,1746655832532,-224.71381618,0.00019896,2]
[360242708,1746655832542,-5030.90569239,0.00019896,2]
[360242710,1746655832552,-2213.49381803,0.00019896,2]
[360242712,1746655832562,-224.71381614,0.00019897,2]
[360242714,1746655832571,-2213.49381803,0.00019897,2]
[360242715,1746655832581,-224.71381614,0.00019897,2]
[360242717,1746655832591,-2213.49381803,0.00019897,2]
[360242719,1746655832601,-5030.90569239,0.00019898,2]
[360242722,1746655832611,-224.71381614,0.00019898,2]
[360242724,1746655832621,-2213.49381803,0.00019898,2]
[360242726,1746655832631,-5000.0,0.00019898,2]
[360242728,1746655832641,-161.7485,0.00019898,2]
[360242754,1746655832890,-2213.49381803,0.00019898,2]
[360242756,1746655832900,-224.71381614,0.00019898,2]
[360242758,1746655832910,-2213.49381803,0.00019899,2]
[360242761,1746655832921,-5030.90569239,0.00019899,2]
[360242762,1746655832930,-224.71381614,0.00019899,2]
[360242765,1746655832941,-316.54029767,0.00019899,2]
[360242767,1746655832950,-151.87337538,0.00019899,2]
[360242769,1746655832960,-2213.49381803,0.00019899,2]
[360242770,1746655832971,-224.71381614,0.00019899,2]
[360242772,1746655832980,-2213.49381803,0.000199,2]
[360242774,1746655832990,-2925.80397554,0.000199,2]
[360242776,1746655833000,-2213.49381803,0.000199,2]
[360242778,1746655833009,-5030.90569239,0.000199,2]
[360242780,1746655833020,-4324.0858562,0.000199,2]
[360242782,1746655833029,-224.71381614,0.000199,2]
[360242784,1746655833038,-269.92787844,0.000199,2]
[360242786,1746655833048,-224.0,0.0001997,2]
[360242788,1746655833058,-502.08209674,0.00019973,2]
[360242790,1746655833068,-636.0,0.00019973,2]
[360242792,1746655833077,-500.0,0.00019973,2]
[360242794,1746655833087,-500.0,0.00019973,2]
[360242796,1746655833098,-504.42525999,0.00019973,2]
[360242798,1746655833108,-500.0,0.00019973,2]
[360242800,1746655833118,-668.65185757,0.00019977,2]
[360242802,1746655833128,-500.0,0.00019988,2]
[360242804,1746655833138,-239.15725374,0.00019988,2]
[360242806,1746655833149,-500.0,0.00019988,2]
[360242808,1746655833159,-500.0,0.00019988,2]
[360242810,1746655833169,-500.0,0.00019988,2]
[360242812,1746655833181,-250.0,0.00019988,2]
[360242814,1746655833191,-500.0,0.00019988,2]
[360242816,1746655833201,-500.0,0.00019988,2]
[360242818,1746655833211,-310.41351274,0.00019988,2]
[360242820,1746655833221,-500.0,0.00019988,2]
[360242822,1746655833230,-500.0,0.00019988,2]
[360242824,1746655833240,-500.0,0.00019988,2]
[360242826,1746655833250,-500.0,0.00019988,2]
[360242828,1746655833259,-500.0,0.00019988,2]
[360242830,1746655833269,-500.0,0.00019988,2]
[360242832,1746655833280,-500.0,0.00019988,2]
[360242834,1746655833291,-500.0,0.00019988,2]
[360242836,1746655833301,-500.0,0.00019988,2]
[360242838,1746655833312,-500.0,0.00019988,2]
[360242840,1746655833324,-500.0,0.00019988,2]
[360242842,1746655833334,-500.0,0.00019988,2]
[360242844,1746655833345,-500.0,0.00019988,2]
[360242846,1746655833356,-500.0,0.00019988,2]
[360242848,1746655833366,-500.0,0.00019988,2]
[360242850,1746655833377,-500.0,0.00019988,2]
[360242852,1746655833387,-500.0,0.00019988,2]
[360242854,1746655833398,-454.07871621,0.00019988,2]
[360242856,1746655833408,-500.0,0.00019988,2]
[360242858,1746655833419,-500.0,0.00019988,2]
[360242860,1746655833433,-357.96098636,0.00019988,2]
[360242862,1746655833444,-500.0,0.00019988,2]
[360242864,1746655833454,-500.0,0.00019988,2]
[360242866,1746655833463,-500.0,0.00019988,2]
[360242868,1746655833473,-500.0,0.00019988,2]
[360242871,1746655833484,-500.0,0.00019988,2]
[360242872,1746655833493,-500.0,0.00019988,2]
[360242874,1746655833504,-500.0,0.00019988,2]
[360242876,1746655833514,-500.0,0.00019988,2]
[360242879,1746655833529,-500.0,0.00019988,2]
[360242881,1746655833539,-500.0,0.00019988,2]
[360242883,1746655833552,-500.0,0.00019988,2]
[360242885,1746655833564,-500.0,0.00019988,2]
[360242887,1746655833574,-500.0,0.00019988,2]
[360242889,1746655833584,-500.0,0.00019988,2]
[360242891,1746655833596,-650.0,0.00019988,2]
[360242893,1746655833605,-500.0,0.00019988,2]
[360242895,1746655833616,-500.0,0.00019988,2]
[360242897,1746655833626,-500.0,0.00019988,2]
[360242899,1746655833636,-500.0,0.00019988,2]
[360242901,1746655833646,-500.0,0.00019988,2]
[360242903,1746655833656,-500.0,0.00019988,2]
[360242905,1746655833666,-638.70268901,0.00019988,2]
[360242907,1746655833677,-500.0,0.00019988,2]
[360242908,1746655833687,-500.0,0.00019988,2]
[360242909,1746655833698,-500.0,0.00019988,2]
[360242910,1746655833708,-500.0,0.00019988,2]
[360242911,1746655833718,-500.0,0.00019988,2]
[360242912,1746655833728,-500.0,0.00019988,2]
[360242913,1746655833738,-500.0,0.00019988,2]
[360242914,1746655833748,-500.0,0.00019988,2]
[360242915,1746655833758,-500.0,0.00019988,2]
[360242916,1746655833769,-500.0,0.00019988,2]
[360242917,1746655833778,-500.0,0.00019988,2]
[360242918,1746655833788,-500.0,0.00019988,2]
[360242919,1746655833798,-500.0,0.00019988,2]
[360242920,1746655833807,-500.0,0.00019988,2]
[360242921,1746655833817,-500.0,0.00019988,2]
[360242922,1746655833829,-500.0,0.00019988,2]
[360242923,1746655833840,-500.0,0.00019988,2]
[360242924,1746655833850,-500.0,0.00019988,2]
[360242925,1746655833859,-500.0,0.00019988,2]
[360242926,1746655833870,-500.0,0.00019988,2]
[360242927,1746655833880,-500.0,0.00019988,2]
[360242928,1746655833890,-250.0,0.00019988,2]
[360242929,1746655833901,-202.95098845,0.00019989,2]
[360242930,1746655833911,-122001.19788571,0.00019989,2]
[360242931,1746655833921,-2129.294621,0.00019989,2]
[360242932,1746655833931,-453.81786962,0.00019989,2]
[360242933,1746655833941,-450.0,0.00019989,2]
[360242934,1746655833950,-450.0,0.00019989,2]
[360242935,1746655833960,-450.0,0.00019989,2]
[360242936,1746655833969,-450.0,0.00019989,2]
[360242937,1746655833980,-170.44771505,0.00019989,2]
[360242938,1746655833989,-450.0,0.00019989,2]
[360242939,1746655833999,-450.0,0.00019989,2]
[360242940,1746655834009,-450.0,0.00019989,2]
[360242941,1746655834018,-450.0,0.00019989,2]
[360242942,1746655834027,-500.0,0.00019989,2]
[360242943,1746655834037,-450.0,0.00019989,2]
[360242944,1746655834047,-450.0,0.00019989,2]
[360242945,1746655834056,-450.0,0.00019989,2]
[360242946,1746655834067,-450.0,0.00019989,2]
[360242947,1746655834076,-450.0,0.00019989,2]
[360242948,1746655834086,-450.0,0.00019989,2]
[360242949,1746655834096,-886.22,0.00019989,2]
[360242950,1746655834106,-450.0,0.00019989,2]
[360242951,1746655834115,-450.0,0.00019989,2]
[360242952,1746655834126,-357.1,0.00019989,2]
[360242953,1746655834136,-450.0,0.00019989,2]
[360242954,1746655834146,-450.0,0.00019989,2]
[360242955,1746655834156,-450.0,0.00019989,2]
[360242956,1746655834166,-450.0,0.00019989,2]
[360242957,1746655834176,-450.0,0.00019989,2]
[360242958,1746655834186,-450.0,0.00019989,2]